Cogmind - Beta 16 @@@ ROGUE MODE // 2025.11.01 @ 20:42:52 Player: GiggleBox Result: Destroyed by S-43 Plague with Heavy Machine Gun Performance ------------- Evolutions (8) 4000 Regions Visited (18) 3600 Robots Destroyed (158) 790 Value Destroyed (6075) 6075 Prototype IDs (67) 1340 Alien Tech Used (2) 400 Bonus (6019) 6019 TOTAL SCORE: 22224 Bonus ------- High Alert Combat Kills 357 Follower Combat Kills 1793 Entered Garrisons 200 Aligned with FarCom 300 Met Zhirov 300 Built Enhanced Grunts 300 A7 Reached Mainframe 300 Met R17 at Cetus 500 Met R17 at Research 2000 Friendly Fire -31 Cogmind --------- Core Integrity 0/1450 Matter 163/300 Energy 100/100 System Corruption 14% Temperature Cool (9) Movement Core (50) Location -2/Research Parts ------- > --- POWER (2) -------- (None) > --- PROPULSION (6) --- (None) > --- UTILITY (11) ----- Enhanced Optical Array Advanced Corruption Screen > --- WEAPON (4) ------- (None) > --- INVENTORY (5) ---- Quantum Capacitor Matter Neutralizer Enhanced Gamma Bomb Array Peak State ------------ > --- POWER ------------ Light Antimatter Reactor Quantum Reactor > --- PROPULSION ------- Thunder Leg Improved Thunder Leg Improved Thunder Leg Improved Thunder Leg Improved Thunder Leg Improved Thunder Leg > --- UTILITY ---------- Improved Cooling System Large Storage Unit Enhanced Optical Array Makeshift Terrain Scanner Advanced Targeting Computer Core Analyzer Armor Integrity Analyzer Improved Transmission Jammer Advanced Reaction Control System Centrium Medium Armor Plating Experimental EM Shield > --- WEAPON ----------- Matter Neutralizer Enhanced Nova Cannon Enhanced Nova Cannon Phasing Sabre > --- INVENTORY -------- Light Antimatter Reactor Light Particle Reactor Flexi-carbon Leg Advanced Power Amplifier Compact Matter Pod Quantum Capacitor Layered Medium Armor Plating Transdimensional Reconstructor Matter Neutralizer Advanced KE Penetrator Advanced KE Penetrator Enhanced Gamma Bomb Array Enhanced Gamma Bomb Array Shock Maul [Rating: 164] Favorites ----------- Power Cooled Ion Engine Engine Cooled Ion Engine Power Core Light Nuclear Core Reactor Quantum Reactor Propulsion Thunder Leg Treads Light Treads Leg Thunder Leg Flight Unit Cooled Nuclear Pulse Thruster Utility Large Storage Unit Device Transmission Jammer Storage Large Storage Unit Processor Enhanced Optical Array Hackware Hacking Suite Protection Centrium Medium Armor Plating Weapon Phase Cannon Energy Gun Beam Rifle Energy Cannon Phase Cannon Ballistic Gun Assault Rifle Launcher Enhanced Gamma Bomb Array Impact Weapon Flail Slashing Weapon Phasing Sabre Build | -11 -10 -10 -10 -9 -8 -8 -7 -6 -6 -6 -5 -4 -4 -4 -4 -3 -3 -2 ------- Run | Yrd Mat Min Exi Min Mat Gar Fac Fac Ext Cet Fac Fac Upp Upp Zhi Pro Res Res Slots Evolved 16 | . . . . . 4 . 2 2 . . 2 2 . . . . 2 2 Power 1 | . . . . . . . . 1 . . . . . . . . . . Propulsion 4 | . . . . . 1 . 1 . . . 1 1 . . . . . . Utility 9 | . . . . . 2 . 1 1 . . 1 1 . . . . 1 2 Weapon 2 | . . . . . 1 . . . . . . . . . . . 1 . Parts Attached 142 | 7 10 3 . 2 23 8 14 9 4 5 11 1 . 1 3 13 11 17 Power 16 | 1 1 2 . 1 2 1 1 1 2 . 1 . . . . 1 1 1 Engine 10 | 1 1 1 . 1 2 1 . 1 2 . . . . . . . . . Core 2 | . . 1 . . . . 1 . . . . . . . . . . . Reactor 4 | . . . . . . . . . . . 1 . . . . 1 1 1 Propulsion 40 | 2 3 1 . . 4 3 4 2 . 3 5 . . . 1 1 5 6 Treads 8 | 2 3 1 . . 1 . 1 . . . . . . . . . . . Leg 31 | . . . . . 3 3 3 2 . 3 5 . . . . 1 5 6 Wheel . | . . . . . . . . . . . . . . . . . . . Hover . | . . . . . . . . . . . . . . . . . . . Flight 1 | . . . . . . . . . . . . . . . 1 . . . Utility 44 | 2 3 . . . 6 4 8 2 1 1 . 1 . 1 2 5 3 5 Device 19 | 1 1 . . . 1 3 5 . . . . . . 1 1 3 1 2 Storage 2 | 1 1 . . . . . . . . . . . . . . . . . Processor 7 | . . . . . . . 1 1 1 . . . . . . 1 1 2 Hackware 2 | . . . . . . . . . . . . 1 . . . . . 1 Protection 14 | . 1 . . . 5 1 2 1 . 1 . . . . 1 1 1 . Artifact . | . . . . . . . . . . . . . . . . . . . Weapon 42 | 2 3 . . 1 11 . 1 4 1 1 5 . . . . 6 2 5 Energy Gun 12 | . 2 . . . 9 . . . . . . . . . . 1 . . Energy Cannon 13 | . . . . 1 . . . 3 . . 4 . . . . 2 1 2 Ballistic Gun 4 | 2 . . . . . . . . . 1 . . . . . . . 1 Ballistic Cannon . | . . . . . . . . . . . . . . . . . . . Launcher 7 | . 1 . . . 1 . 1 . . . . . . . . 3 . 1 Special Weapon . | . . . . . . . . . . . . . . . . . . . Impact Weapon 3 | . . . . . 1 . . . . . . . . . . . 1 1 Slashing Weapon 3 | . . . . . . . . 1 1 . 1 . . . . . . . Piercing Weapon . | . . . . . . . . . . . . . . . . . . . Special Melee Weapon . | . . . . . . . . . . . . . . . . . . . Unidentified Prototypes 18 | . . . . . 2 . 1 . . 2 1 . . . 4 4 1 3 Parts Lost 47 | . 4 . . . 2 3 . . 2 . . 2 . 1 . 6 2 25 Power 7 | . 1 . . . 1 . . . . . . 1 . 1 . . . 3 Propulsion 17 | . 1 . . . . 3 . . 1 . . . . . . 4 1 7 Utility 14 | . 1 . . . 1 . . . . . . 1 . . . 1 . 10 Weapon 9 | . 1 . . . . . . . 1 . . . . . . 1 1 5 Highest Loss Streak 18 | . 3 . . . 1 2 . . 1 . . 2 . 1 . 3 1 18 To Critical Strikes . | . . . . . . . . . . . . . . . . . . . Average Backups 13 | 1 9 14 15 15 14 14 14 14 14 14 14 13 13 14 14 13 13 8 Power . | . . . 1 1 . 1 1 . . 1 1 . . . . . 1 . Propulsion 1 | . 1 6 5 5 4 3 1 1 1 2 1 . . . . . . . Utility 4 | . . 1 2 2 2 3 6 7 7 6 6 6 7 8 7 6 6 2 Weapon 5 | . 5 7 7 7 6 6 6 5 4 5 6 6 6 6 6 5 3 4 Tool/Special . | . . . . . . . . . . . . . . . . . . . Unused Backups 30 | . 2 1 . . 10 1 2 1 1 4 2 . . . 1 . 1 4 Power 3 | . . . . . 1 1 . . . 1 . . . . . . . . Propulsion 10 | . . . . . 6 . 1 . 1 1 . . . . . . . 1 Utility 9 | . . . . . . . . . . 2 2 . . . 1 . 1 3 Weapon 8 | . 2 1 . . 3 . 1 1 . . . . . . . . . . Tool/Special . | . . . . . . . . . . . . . . . . . . . Average Slot Usage (%) 94 | . 94 100 100 100 96 98 99 89 95 100 99 99 99 94 94 85 92 61 Engine 7 | . 10 11 14 14 9 9 6 6 12 13 10 9 5 . . . . . Reactor 1 | . . . . . . . . . . . . . 5 5 5 5 7 3 Treads 5 | . 27 28 28 28 . . . . . . . . . . . . . . Leg 21 | . . . . . 26 26 29 26 26 26 28 30 31 31 31 22 22 12 Device 12 | . 6 14 14 14 16 17 15 13 6 6 10 10 14 15 15 10 18 11 Storage 7 | . 14 14 14 14 9 9 7 6 6 6 5 5 5 5 5 5 4 2 Processor 9 | . . . . . . . 6 12 19 20 17 15 15 15 15 15 14 16 Protection 5 | . 6 . . . 7 8 7 6 6 6 5 5 5 5 5 9 4 1 Energy Gun 9 | . 8 27 28 26 26 25 21 1 . . . . . . . 1 1 . Energy Cannon 6 | . . . . 1 . . . 8 9 19 15 10 10 10 10 7 9 5 Ballistic Gun 2 | . 19 . . . . . . . . . . . . . . . 2 . Slashing Weapon 1 | . . . . . . . . 3 5 . 1 5 5 5 5 5 4 2 Peak Build Rating 164 | 7 12 15 16 23 46 45 59 59 65 75 98 108 112 112 113 112 132 164 Average Rating 63 | 5 8 14 15 16 35 41 51 56 63 71 90 107 111 110 110 107 122 91 On Entrance 60 | . 7 12 15 16 16 37 44 51 59 65 73 97 107 112 110 111 95 127 Avg Prop Armor Cover (%) 32 | . . . . 23 . . 6 . . . . . . . . . . 42 Naked Turns . | . . . . . . . . . . . . . . . . . . . Heaviest Build 113 | 12 30 32 32 43 52 47 51 56 70 71 84 80 82 82 73 84 93 113 Greatest Support 163 | 40 40 40 40 40 60 54 68 64 67 74 115 135 135 135 135 125 142 163 Greatest Overweight (x) 14 | . 1 . . 14 . 1 . . 1 1 . . . . . . 1 9 Average Overweight (x) . | . . . . . . . . . . . . . . . . . . . Largest Inventory Capacity 15 | 8 15 15 15 15 15 15 15 15 15 15 15 15 15 15 15 15 15 15 Average Capacity 14 | 7 11 15 15 15 15 15 15 15 15 15 15 15 15 15 15 15 15 10 Most Carried 15 | 2 15 15 15 15 15 15 15 15 15 15 15 15 15 15 15 15 15 15 Average Carried 13 | 1 9 14 15 15 14 14 14 14 14 14 14 14 14 15 15 14 14 9 Final Capacity 15 | 8 15 15 15 15 15 15 15 15 15 15 15 15 15 15 15 15 15 5 Final Carried 15 | 2 15 15 15 15 15 14 15 15 15 15 15 14 15 15 15 15 15 4 Class Distribution -------------------- 34% | Mutant 19% | Skirmisher 15% | Scavenger-Mutant 11% | Commander-Gunner 8% | Scavenger-Assassin 5% | Commander-Mutant Dominant Class ---------------- Mutant | -10/Materials Mutant | -10/Mines Mutant | -10/Exiles Mutant | -9/Mines Skirmisher | -8/Materials Skirmisher | -8/Garrison Skirmisher | -7/Factory Mutant | -6/Factory Mutant | -6/Extension Commander-Gunner | -6/Cetus Commander-Gunner | -5/Factory Scavenger-Mutant | -4/Factory Scavenger-Mutant | -4/Upper Caves Scavenger-Mutant | -4/Upper Caves Scavenger-Mutant | -4/Zhirov Scavenger-Mutant | -3/Proximity Caves Scavenger-Assassin | -3/Research Mutant | -2/Research Resources | -11 -10 -10 -10 -9 -8 -8 -7 -6 -6 -6 -5 -4 -4 -4 -4 -3 -3 -2 ----------- Run | Yrd Mat Min Exi Min Mat Gar Fac Fac Ext Cet Fac Fac Upp Upp Zhi Pro Res Res Matter Collected 3335 | 294 404 66 . 30 305 373 558 . 285 120 196 . 85 62 50 245 262 . Remotely . | . . . . . . . . . . . . . . . . . . . Salvage Created 7659 | 101 552 146 . 41 1173 556 919 . 704 199 663 . 16 26 322 1116 576 549 Parts 324 | 12 36 8 . 2 42 32 21 . 36 6 29 . . 2 4 49 15 30 Haulers Intercepted 12 | . 2 . . . 4 . 2 . . . 1 . . . . 1 2 . Recyclers Shooed 3 | . 2 . . . . . 1 . . . . . . . . . . . Parts Field Recycled . | . . . . . . . . . . . . . . . . . . . Retrieved Matter . | . . . . . . . . . . . . . . . . . . . Parts Self-Destructed 34 | . . . . . . . . . . . . . . . 4 30 . . Prevented 18 | . . . . . . . . . . . . . . . . 18 . . Parts Restored . | . . . . . . . . . . . . . . . . . . . Kills | -11 -10 -10 -10 -9 -8 -8 -7 -6 -6 -6 -5 -4 -4 -4 -4 -3 -3 -2 ------- Run | Yrd Mat Min Exi Min Mat Gar Fac Fac Ext Cet Fac Fac Upp Upp Zhi Pro Res Res Combat Hostiles Destroyed 112 | . 17 5 . 1 19 21 5 . 9 3 9 . 1 . . 11 6 5 Melee 8 | . 1 . . . . . . . 6 . . . . . . 1 . . Guns 43 | . 11 5 . 1 12 9 3 . . . . . . . . . 2 . Cannons 16 | . . . . . . . . . 3 2 4 . . . . 4 3 . AOE 32 | . 5 . . . 4 11 1 . . . 5 . 1 . . 2 . 3 Classes Destroyed 17 | 2 4 . . . 4 . 2 . . . 3 . . . . 2 . . Worker 4 | . . . . . 1 . 1 . . . 2 . . . . . . . Builder 5 | . . . . . . . 1 . 1 . . . . . . . . 3 Tunneler 3 | 3 . . . . . . . . . . . . . . . . . . Hauler 12 | . 2 . . . 4 . 2 . . . 1 . . . . 1 2 . Recycler 10 | 1 . . . . . . 6 . 2 . 1 . . . . . . . Mechanic 1 | . . . . . . . . . . . 1 . . . . . . . Operator 1 | . . . . . 1 . . . . . . . . . . . . . Drone 2 | . . . . . . . . . . . . . . . . 2 . . Watcher 10 | . 3 . . . 3 . 2 . . . 2 . . . . . . . Swarmer 29 | . 9 3 . . 4 10 . . . . 2 . 1 . . . . . Grunt 45 | . 8 2 . 1 7 6 3 . 4 . 3 . . . . 1 6 4 Brawler 1 | . . . . . . . . . . . 1 . . . . . . . Duelist 2 | . . . . . . . . . . . 2 . . . . . . . Protector 1 | . . . . . . . . . . . . . . . . 1 . . Sentry 14 | . . . . . 5 4 . . 3 . 1 . . . . 1 . . Hunter 10 | . . . . . 3 1 . . . . . . . . . 5 . 1 Programmer 5 | . . . . . . . 2 . 2 . . . . . . 1 . . Cetus Guard 3 | . . . . . . . . . . 3 . . . . . . . . Decomposer 1 | . . . . . . . . . . . . . . 1 . . . . Best Kill Streak 8 | 3 6 5 . 1 5 6 3 . 3 2 7 . 1 . . 5 3 8 Combat Bots Only 6 | . 6 5 . 1 4 6 2 . 2 2 5 . 1 . . 5 3 5 Max Kills in Single Turn 5 | 1 3 1 . 1 5 3 1 . 1 1 3 . 1 1 . 2 1 4 Gunslinging 1 | . . . . . . 1 . . . . . . . . . . . . Exploded 4 | . 3 . . . 4 3 1 . . . 2 . 1 . . 1 . 2 Melee 1 | . 1 . . . . . . . 1 . . . . . . 1 . . Uniques/NPCs Destroyed . | . . . . . . . . . . . . . . . . . . . Combat | -11 -10 -10 -10 -9 -8 -8 -7 -6 -6 -6 -5 -4 -4 -4 -4 -3 -3 -2 -------- Run | Yrd Mat Min Exi Min Mat Gar Fac Fac Ext Cet Fac Fac Upp Upp Zhi Pro Res Res Hostile Shots Fired 1051 | . 92 7 . 5 60 84 49 . 184 2 26 27 29 10 . 119 16 341 Missed 414 | . 19 3 . 3 19 25 14 . 98 1 5 10 17 4 . 52 3 141 Hits 637 | . 73 4 . 2 41 59 35 . 86 1 21 17 12 6 . 67 13 200 Melee 8 | . . . . . . . 3 . . . . 5 . . . . . . Projectile 629 | . 73 4 . 2 41 59 32 . 86 1 21 12 12 6 . 67 13 200 AOE 4 | . . . . . . . . . . . 3 . . . . . . 1 Critical Strikes 23 | . . . . . 3 1 2 . 2 . . 2 1 1 . 2 . 9 Part Disruptions 1 | . . . . . . . . . . . . . . . . . . 1 Damage Taken 11522 | . 700 59 . 24 635 913 566 . 907 29 616 458 238 119 . 1251 269 4738 Core 2190 | . 125 10 . 12 34 58 137 . 155 . 94 16 24 18 . 154 . 1353 Absorbed by Shields 77 | . . . . . . . . . 77 . . . . . . . . . Ignored by Resistances 119 | . . . . . 10 . . . . . . . . . . . . 109 Core Remaining (%) 82 | 100 . . . 41 . 83 80 . . 81 90 . . . . 81 100 . Volleys Fired 319 | 6 68 8 . 3 57 43 29 10 13 8 24 3 1 . 6 22 13 5 Largest 3 | 2 2 2 . 2 3 3 3 1 3 3 3 2 1 . 2 2 3 2 Hottest 270 | 40 112 112 . 112 173 173 173 85 255 255 270 180 39 . 180 195 270 210 Shots Fired 738 | 12 133 16 . 5 168 103 81 10 21 24 69 5 1 . 12 37 35 6 Gun 516 | 12 130 16 . 4 167 93 79 . . . . . . . . 1 12 2 Cannon 196 | . . . . 1 1 2 . 10 21 24 67 5 . . 12 28 23 2 Launcher 26 | . 3 . . . . 8 2 . . . 2 . 1 . . 8 . 2 Special . | . . . . . . . . . . . . . . . . . . . Kinetic 143 | 12 119 2 . . . . . . . . . . . . . . 8 2 Thermal 560 | . 11 14 . 4 167 93 79 10 21 24 67 5 . . 12 28 23 2 Explosive 16 | . 3 . . . . 8 2 . . . 2 . 1 . . . . . Electromagnetic 19 | . . . . 1 1 2 . . . . . . . . . 9 4 2 Robot Hit Streak 13 | 5 8 5 . 2 9 13 7 4 3 6 5 . 2 . 5 12 11 1 Robot Miss Streak 5 | 1 4 1 . 1 3 4 3 3 4 2 3 . . . 2 5 3 1 Penetration Max . | . . . . . . . . . . . . . . . . . . . Secondary Targets 4 | . 2 . . . . 2 . . . . . . . . . . . . Max Gunslinging Chain 1 | . 1 . . . . 1 . . . . . . . . . . . . Shots Hit Robots 471 | 8 87 10 . 3 105 44 54 6 24 18 37 . 1 1 6 33 24 10 Core Hits 280 | 5 36 7 . 2 47 33 23 . 14 8 30 . . 1 5 37 12 20 Critical Kills 4 | . . . . . . . . . . 1 . . . . . 1 2 . Critical Parts Destroyed 2 | . . . . . 1 . . . . . . . . . . . 1 . Critical Strikes 27 | . 1 1 . . 12 1 5 1 1 1 . . . . . 1 3 . Burn 19 | . 1 1 . . 11 1 5 . . . . . . . . . . . Meltdown 3 | . . . . . . . . . . 1 . . . . . 1 1 . Destroy 2 | . . . . . . . . . . . . . . . . . 2 . Smash 1 | . . . . . 1 . . . . . . . . . . . . . Sever 2 | . . . . . . . . 1 1 . . . . . . . . . Melee Attacks 119 | . . . . . 4 11 14 8 17 . 10 2 . 1 . 17 12 23 Impact 42 | . . . . . 4 11 14 2 . . . . . . . . . 11 Slashing 77 | . . . . . . . . 6 17 . 10 2 . 1 . 17 12 12 Piercing . | . . . . . . . . . . . . . . . . . . . Sneak Attacks 23 | . . . . . 3 . 7 1 6 . 2 . . 1 . 1 2 . Combat Hostiles . | . . . . . . . . . . . . . . . . . . . Follow-up Attacks 1 | . . . . . . . . . . . . . . . . . . 1 Damage Inflicted 16794 | 99 1245 146 . 125 2081 1776 1576 239 1390 611 2753 . 161 90 247 2328 911 1016 Guns 4575 | 99 1011 146 . 31 1548 690 894 . . . . . . . . . 156 . Cannons 3821 | . . . . 10 . . . 153 322 611 1281 . . . 247 566 597 34 Explosions 4784 | . 218 . . 69 315 941 221 . . . 1254 . 161 . . 1033 . 572 Melee 3521 | . . . . . 218 145 454 86 1068 . 178 . . 90 . 729 158 395 Ramming 93 | . 16 . . 15 . . 7 . . . 40 . . . . . . 15 Kinetic 1171 | 99 922 25 . . . . . . . . . . . . . . 125 . Thermal 7395 | . 89 121 . 31 1570 690 894 153 322 611 1470 . . . 247 566 597 34 Explosive 2518 | . 218 . . . . 853 221 . . . 1065 . 161 . . . . . Electromagnetic 2096 | . . . . 79 293 88 . . . . . . . . . 1033 31 572 Impact 1007 | . . . . . 218 145 454 . . . . . . . . . . 190 Slashing 2514 | . . . . . . . . 86 1068 . 178 . . 90 . 729 158 205 Piercing . | . . . . . . . . . . . . . . . . . . . Highest Corruption 14 | . . . . 1 6 9 . . . . 1 . . . . 1 2 14 Average Corruption 4 | . . . . 1 4 8 . . . . 1 . . . . 1 2 13 Corruption Purged . | . . . . . . . . . . . . . . . . . . . Corruption Blocked 3 | . . . . . . . . . . . . . . . . . . 3 Effects 74 | . . . . . 5 34 . . . . 5 . . . . 2 6 22 Message Errors 20 | . . . . . 3 12 . . . . . . . . . . 1 4 Matter Fused 16 | . . . . . 1 8 . . . . 1 . . . . . 1 5 Heat Flow Errors 12 | . . . . . . 4 . . . . 3 . . . . 1 1 3 Energy Discharges 9 | . . . . . . 5 . . . . . . . . . 1 2 1 Parts Rejected 2 | . . . . . . 1 . . . . . . . . . . . 1 Data Loss (minor) 3 | . . . . . . 1 . . . . . . . . . . . 2 Data Loss (major) 3 | . . . . . . 2 . . . . . . . . . . 1 . Misfires 2 | . . . . . 1 . . . . . 1 . . . . . . . Misdirections 6 | . . . . . . . . . . . . . . . . . . 6 Weapon Failures 1 | . . . . . . 1 . . . . . . . . . . . . Overload Shots . | . . . . . . . . . . . . . . . . . . . Overflow Damage 1087 | . 4 . . . 117 34 234 . 176 2 138 . 70 . 23 281 8 . Projectiles 92 | . . . . . . . . . . 2 28 . . . 23 31 8 . Explosions 100 | . 4 . . . 5 19 . . . . 2 . 70 . . . . . Melee 895 | . . . . . 112 15 234 . 176 . 108 . . . . 250 . . Knockbacks 5 | . . . . . . . 4 . . . . . . . . . . 1 Impact 5 | . . . . . . . 4 . . . . . . . . . . 1 Kinetic . | . . . . . . . . . . . . . . . . . . . Secondary . | . . . . . . . . . . . . . . . . . . . Self-Inflicted Damage 248 | . . . . . . 152 . . . . . . . . . 76 . 20 Shots 12 | . . . . . . 5 . . . . . . . . . 6 . 1 Rammed 12 | . 4 . . 2 . . . . . . . . . . . . . 6 Targets Rammed 19 | . 5 . . 2 . . 3 . . . 3 . . . . . . 6 Kicked 6 | . . . . . . . 3 . . . 3 . . . . . . . Crushed 1 | . 1 . . . . . . . . . . . . . . . . . Highest Temperature 377 | . 66 27 . 24 171 198 377 160 295 335 352 6 . . 261 225 279 271 Average Temperature 70 | . 12 12 . 14 38 47 95 71 92 145 100 4 . . 99 72 115 105 Received Heat Transfer 1681 | . 201 . . 12 234 279 171 . 195 . 108 39 42 76 . 45 27 252 Effects 4 | . . . . . . . 1 . . . 3 . . . . . . . Interference 3 | . . . . . . . . . . . 3 . . . . . . . Short Circuit 1 | . . . . . . . 1 . . . . . . . . . . . Siege Activations . | . . . . . . . . . . . . . . . . . . . Martial Activations . | . . . . . . . . . . . . . . . . . . . Shielding Activations . | . . . . . . . . . . . . . . . . . . . Robots Disrupted 1 | . . . . . . . . . . . . . . . . 1 . . Combat Hostiles 1 | . . . . . . . . . . . . . . . . 1 . . Robots Corrupted 11 | . . . . . 1 1 4 . . . . . . . . 3 . 2 Combat Hostiles 6 | . . . . . . 1 . . . . . . . . . 3 . 2 Parts Fried 23 | . . . . . 9 . 5 . . . . . . . . 8 . 1 Impact Corruptions 12 | . . . . . 2 1 9 . . . . . . . . . . . Robots Melted 7 | . . . . . 3 . 1 . . 1 . . . . . 1 1 . Combat Hostiles 7 | . . . . . 3 . 1 . . 1 . . . . . 1 1 . Parts Melted 35 | . . . . . 22 4 4 . . 2 1 . . . . 1 1 . Heat Transferred 12188 | . 296 370 . 74 4638 1461 2109 185 370 740 964 . . . . 315 629 37 Parts Sabotaged . | . . . . . . . . . . . . . . . . . . . Parts Stolen . | . . . . . . . . . . . . . . . . . . . Parts Stripped . | . . . . . . . . . . . . . . . . . . . Power Chain Reactions 4 | . . . . . 1 . . . . . 1 . . . . 1 . 1 Latent Energy Used 384 | . . . . 59 139 186 . . . . . . . . . . . . LE Corruption 7 | . . . . 1 3 3 . . . . . . . . . . . . Alert | -11 -10 -10 -10 -9 -8 -8 -7 -6 -6 -6 -5 -4 -4 -4 -4 -3 -3 -2 ------- Run | Yrd Mat Min Exi Min Mat Gar Fac Fac Ext Cet Fac Fac Upp Upp Zhi Pro Res Res Maximum Alert Level 4 | . 1 . . . . 3 2 . 1 . 4 2 . . . . . . Low Security (%) 72 | 100 92 100 . 100 100 10 18 100 95 100 50 . . . . . 100 100 Level 1 12 | . 7 . . . . 18 65 . 4 . 6 . . . . . . . Level 2 6 | . . . . . . 25 15 . . . 7 100 . . . . . . Level 3 4 | . . . . . . 46 . . . . 2 . . . . . . . Level 4 4 | . . . . . . . . . . . 33 . . . . . . . Level 5 . | . . . . . . . . . . . . . . . . . . . High Security . | . . . . . . . . . . . . . . . . . . . Max Security . | . . . . . . . . . . . . . . . . . . . Peak Influence 1367 | 10 233 132 . 65 181 813 453 86 215 155 1367 681 . . . . 119 173 Initial 665 | . . 17 . . . 109 426 86 . 92 68 665 . . . . . . Average 200 | 1 73 84 . 25 50 564 318 22 72 63 521 639 . . . . 36 13 Influence Increases 6621 | 20 489 135 . 65 722 734 446 10 572 365 1955 45 80 45 15 230 269 424 Destroy 0b10 Robot/C 2960 | . 340 100 . 20 420 420 180 . 300 160 620 . 20 . . 160 120 100 Destroy 0b10 Robot/NC 330 | 20 25 . . . 55 . 60 . 15 10 70 . . . 15 35 10 15 Destroy Leader 480 | . 60 20 . . 116 10 68 . 30 . 122 . . . . 20 14 20 Allied During Kill 1097 | . . . . . 18 . 8 . 127 170 774 . . . . . . . Trap Triggered on 0b10 30 | . . . . . . . . . 30 . . . . . . . . . Successful Hack 254 | . 39 . . . 41 7 45 . 31 9 38 16 . . . . 28 . Select Force Hacks 100 | . . . . . . . . . . . . . . . . . . 100 Disable Machine 390 | . 15 15 . . 45 135 30 . . . 150 . . . . . . . Anti-Garrison Action 100 | . . . . . . 100 . . . . . . . . . . . . Destroy Structure 385 | . 10 . . . 12 47 55 10 9 16 166 14 . . . . 22 24 Partial Spotted 15 | . . . . . . . . . . . . . . . . . . 15 Lose Combat Pursuer 480 | . . . . 45 15 15 . . 30 . 15 15 60 45 . 15 75 150 Influence Decreases 6502 | 20 444 148 32 65 553 90 1083 186 405 409 719 814 505 210 15 230 269 305 Entered New Map 1672 | . . 28 32 . . 60 387 90 . 75 55 694 219 32 . . . . Time Decay 3796 | 20 394 120 . 65 385 . 506 96 385 201 516 80 286 168 15 220 249 90 Lost Part 375 | . 40 . . . 20 30 . . 10 . . 20 . 10 . 10 20 215 Lost Ally 391 | . 10 . . . 30 . 40 . 10 133 148 20 . . . . . . Purge Threat 268 | . . . . . 118 . 150 . . . . . . . . . . . Squads Dispatched 25 | . 1 . . . 1 . 5 1 . . 7 . . . . . 3 7 Investigation 6 | . 1 . . . . . 2 . . . . . . . . . 1 2 Extermination 12 | . . . . . . . 3 1 . . 4 . . . . . . 4 Reinforcement 5 | . . . . . 1 . . . . . 1 . . . . . 2 1 Assault 2 | . . . . . . . . . . . 2 . . . . . . . Garrison . | . . . . . . . . . . . . . . . . . . . Intercept . | . . . . . . . . . . . . . . . . . . . Searches Triggered . | . . . . . . . . . . . . . . . . . . . Construction Impeded . | . . . . . . . . . . . . . . . . . . . Haulers Reinforced 2 | . . . . . . . . . . . 1 . . . . . 1 . Active Scanning Responses . | . . . . . . . . . . . . . . . . . . . Cargo Convoy Interrupts . | . . . . . . . . . . . . . . . . . . . Stealth | -11 -10 -10 -10 -9 -8 -8 -7 -6 -6 -6 -5 -4 -4 -4 -4 -3 -3 -2 --------- Run | Yrd Mat Min Exi Min Mat Gar Fac Fac Ext Cet Fac Fac Upp Upp Zhi Pro Res Res Distress Signals 21 | . 1 . . . 4 . . . 1 1 1 . . . . . 10 3 Communications Jammed 32 | . . . . . . . 8 . . . 1 . . . . 1 . 22 Distress Signals 29 | . . . . . . . 7 . . . . . . . . . . 22 Times Spotted 243 | . 24 5 . 3 27 19 20 . 15 9 34 8 8 3 . 18 11 39 Peak Tracking Total 22 | . 5 3 . 3 3 4 4 . 5 5 7 7 3 3 . 7 5 22 Tactical Retreats 15 | . . . . 1 1 1 . . 1 . 1 1 3 1 . 1 1 3 Traps | -11 -10 -10 -10 -9 -8 -8 -7 -6 -6 -6 -5 -4 -4 -4 -4 -3 -3 -2 ------- Run | Yrd Mat Min Exi Min Mat Gar Fac Fac Ext Cet Fac Fac Upp Upp Zhi Pro Res Res Traps Triggered 8 | . 1 1 . . . 4 . . 1 . . . . . . . 1 . Indirectly . | . . . . . . . . . . . . . . . . . . . Trap Hack Attempts . | . . . . . . . . . . . . . . . . . . . Triggered . | . . . . . . . . . . . . . . . . . . . Disarmed . | . . . . . . . . . . . . . . . . . . . Reprogrammed . | . . . . . . . . . . . . . . . . . . . Reused 3 | . . . . . . . . . 3 . . . . . . . . . Traps Extracted . | . . . . . . . . . . . . . . . . . . . Installed 3 | . . . . . . . . . 3 . . . . . . . . . Triggered 3 | . . . . . . . . . 3 . . . . . . . . . Most Traps Carried 4 | . . . . . . 4 4 4 4 . . . . . . . . . Machines | -11 -10 -10 -10 -9 -8 -8 -7 -6 -6 -6 -5 -4 -4 -4 -4 -3 -3 -2 ---------- Run | Yrd Mat Min Exi Min Mat Gar Fac Fac Ext Cet Fac Fac Upp Upp Zhi Pro Res Res Machines Disabled 32 | . 1 1 . . 3 11 2 . 1 1 10 . . . 2 . . . Max in Single Turn 5 | . 1 1 . . 1 2 . . 1 . 5 . . . 1 . . . Garrison Relay 2 | . . . . . . 2 . . . . . . . . . . . . Machines Repaired . | . . . . . . . . . . . . . . . . . . . Machines Dismantled . | . . . . . . . . . . . . . . . . . . . Machines Sabotaged . | . . . . . . . . . . . . . . . . . . . Overloaded Fab Kills . | . . . . . . . . . . . . . . . . . . . Hacking | -11 -10 -10 -10 -9 -8 -8 -7 -6 -6 -6 -5 -4 -4 -4 -4 -3 -3 -2 --------- Run | Yrd Mat Min Exi Min Mat Gar Fac Fac Ext Cet Fac Fac Upp Upp Zhi Pro Res Res Machines Accessed 69 | . 8 1 1 . 12 2 11 2 13 1 8 1 . . 4 . 3 2 Terminals 51 | . 8 . . . 10 2 7 1 13 1 6 1 . . . . 2 . Fabricators 5 | . . . . . . . 1 1 . . 1 . . . . . . 2 Repair Stations . | . . . . . . . . . . . . . . . . . . . Recycling Units . | . . . . . . . . . . . . . . . . . . . Scanalyzers 5 | . . . . . 1 . 2 . . . 1 . . . . . 1 . Garrison Access 2 | . . . . . 1 . 1 . . . . . . . . . . . Total Hacks 186 | . 31 1 1 . 40 5 28 3 24 4 22 1 . . 17 . 7 2 Successful 105 | . 19 1 1 . 27 2 9 . 10 1 10 1 . . 17 . 5 2 Failed 78 | . 12 . . . 12 3 18 3 14 3 12 . . . . . 1 . Catastrophic 15 | . 1 . . . 2 . 3 2 5 1 1 . . . . . . . Database Lockouts 3 | . . . . . 1 . 1 . . . . . . . . . 1 . Manual 97 | . 24 . 1 . 23 1 18 3 11 1 11 . . . . . 2 2 Terminals 143 | . 31 . . . 37 5 19 1 24 4 18 1 . . . . 3 . Fabricators 7 | . . . . . . . 1 2 . . 2 . . . . . . 2 Repair Stations . | . . . . . . . . . . . . . . . . . . . Recycling Units . | . . . . . . . . . . . . . . . . . . . Scanalyzers 13 | . . . . . 2 . 5 . . . 2 . . . . . 4 . Garrison Access 4 | . . . . . 1 . 3 . . . . . . . . . . . Terminal Hacks 57 | . 8 1 1 . 14 2 2 . 8 1 1 1 . . 17 . 1 . Record 5 | . . . . . . . . . . . . . . . 5 . . . Part Schematic 4 | . . . . . . . . . . . . . . . 4 . . . Robot Analysis 6 | . 2 . . . . . . . . . . . . . 4 . . . Prototype ID Bank 13 | . 3 . . . 3 . . . 1 . 1 . . . 4 . 1 . Open Door 8 | . . 1 . . . 1 . . 5 1 . . . . . . . . Branch Access Points 1 | . . . . . . . . . . . . 1 . . . . . . Emergency Access Points 1 | . . . . . . 1 . . . . . . . . . . . . Terminal Index 2 | . 1 . . . 1 . . . . . . . . . . . . . Alert Level 5 | . 2 . . . 2 . 1 . . . . . . . . . . . Unreport Threat 2 | . . . . . 1 . 1 . . . . . . . . . . . Maintenance Status 1 | . . . . . . . . . 1 . . . . . . . . . Patrol Status 1 | . . . . . 1 . . . . . . . . . . . . . Transport Status 1 | . . . . . 1 . . . . . . . . . . . . . Recall Investigation 1 | . . . . . 1 . . . . . . . . . . . . . Recall Reinforcements 1 | . . . . . 1 . . . . . . . . . . . . . Hauler Manifests 1 | . . . . . 1 . . . . . . . . . . . . . Registered Components 1 | . . . . . 1 . . . . . . . . . . . . . Zone Layout 2 | . . . . . 1 . . . 1 . . . . . . . . . Proto ID Catalog 1 | . . . 1 . . . . . . . . . . . . . . . Fabricator Hacks 1 | . . . . . . . . . . . 1 . . . . . . . Network Status 1 | . . . . . . . . . . . 1 . . . . . . . Repair Station Hacks . | . . . . . . . . . . . . . . . . . . . Recycling Unit Hacks . | . . . . . . . . . . . . . . . . . . . Scanalyzer 6 | . . . . . 1 . 1 . . . 1 . . . . . 3 . Retrieve Study 6 | . . . . . 1 . 1 . . . 1 . . . . . 3 . Garrison Access Hacks 1 | . . . . . 1 . . . . . . . . . . . . . Unlock Access 1 | . . . . . 1 . . . . . . . . . . . . . Unauthorized Hacks 40 | . 11 . . . 11 . 6 . 2 . 7 . . . . . 1 2 Terminals 37 | . 11 . . . 11 . 6 . 2 . 6 . . . . . 1 . Track 2 | . . . . . 1 . . . 1 . . . . . . . . . Assimilate 5 | . 2 . . . 1 . 2 . . . . . . . . . . . Botnet 13 | . 3 . . . 3 . 2 . 1 . 3 . . . . . 1 . Disrupt 1 | . . . . . 1 . . . . . . . . . . . . . Operators 2 | . 1 . . . . . . . . . 1 . . . . . . . Skim 14 | . 5 . . . 5 . 2 . . . 2 . . . . . . . Fabricators 3 | . . . . . . . . . . . 1 . . . . . . 2 Haulers 1 | . . . . . . . . . . . 1 . . . . . . . Overload 2 | . . . . . . . . . . . . . . . . . . 2 Repair Stations . | . . . . . . . . . . . . . . . . . . . Recycling Units . | . . . . . . . . . . . . . . . . . . . Scanalyzers . | . . . . . . . . . . . . . . . . . . . Garrison Access . | . . . . . . . . . . . . . . . . . . . Data Cores Recovered 1 | . . . . . 1 . . . . . . . . . . . . . Used 1 | . . . . . 1 . . . . . . . . . . . . . Hacking Detections 50 | . 8 . . . 8 1 10 2 8 1 8 1 . . . . 3 . Full Trace Events 2 | . . . . . . . 2 . . . . . . . . . . . Feedback Events . | . . . . . . . . . . . . . . . . . . . Feedback Blocked . | . . . . . . . . . . . . . . . . . . . Robot Schematics Acquired . | . . . . . . . . . . . . . . . . . . . Robots Built . | . . . . . . . . . . . . . . . . . . . Authchips . | . . . . . . . . . . . . . . . . . . . Time . | . . . . . . . . . . . . . . . . . . . Total Robot Build Rating . | . . . . . . . . . . . . . . . . . . . Part Schematics Acquired 4 | . . . . . . . . . . . . . . . 4 . . . Parts Built . | . . . . . . . . . . . . . . . . . . . Authchips . | . . . . . . . . . . . . . . . . . . . Time . | . . . . . . . . . . . . . . . . . . . Total Part Build Rating . | . . . . . . . . . . . . . . . . . . . Part Studies Acquired 5 | . . . . . . . 1 . . . 1 . . . . . 3 . Parts Repaired . | . . . . . . . . . . . . . . . . . . . Time . | . . . . . . . . . . . . . . . . . . . Parts Recycled . | . . . . . . . . . . . . . . . . . . . Recycled Matter . | . . . . . . . . . . . . . . . . . . . Retrieved Matter . | . . . . . . . . . . . . . . . . . . . Retrieved Components . | . . . . . . . . . . . . . . . . . . . Parts Scanalyzed . | . . . . . . . . . . . . . . . . . . . Part Schematics Acquired . | . . . . . . . . . . . . . . . . . . . Parts Damaged . | . . . . . . . . . . . . . . . . . . . Bothacking | -11 -10 -10 -10 -9 -8 -8 -7 -6 -6 -6 -5 -4 -4 -4 -4 -3 -3 -2 ------------ Run | Yrd Mat Min Exi Min Mat Gar Fac Fac Ext Cet Fac Fac Upp Upp Zhi Pro Res Res Used RIF Installer . | . . . . . . . . . . . . . . . . . . . Robots Hacked . | . . . . . . . . . . . . . . . . . . . Non-combat . | . . . . . . . . . . . . . . . . . . . Combat . | . . . . . . . . . . . . . . . . . . . Robot Hacks Applied . | . . . . . . . . . . . . . . . . . . . Relay Couplers Released 8 | . . . . . . 8 . . . . . . . . . . . . Machine Destruction 8 | . . . . . . 8 . . . . . . . . . . . . Fabnet Peak Effective % . | . . . . . . . . . . . . . . . . . . . Robots Rewired 14 | . . . . . . 4 . . 10 . . . . . . . . . Allies Hacked . | . . . . . . . . . . . . . . . . . . . Hacks Repelled . | . . . . . . . . . . . . . . . . . . . Allies | -11 -10 -10 -10 -9 -8 -8 -7 -6 -6 -6 -5 -4 -4 -4 -4 -3 -3 -2 -------- Run | Yrd Mat Min Exi Min Mat Gar Fac Fac Ext Cet Fac Fac Upp Upp Zhi Pro Res Res Total Allies 33 | . 1 . . 3 1 4 2 . 17 5 . . . . . . . . Largest Group 17 | . 1 . . 3 3 4 2 2 17 17 15 1 . . . . . . Highest-Rated Group 899 | . 10 . . 40 40 126 70 52 612 899 868 96 . . . . . . Highest-Rated Ally 159 | . 10 . . 16 16 39 39 26 159 159 159 96 . . . . . . Initial Warlord ECA Mod 1 | . . . . . . . 1 . . . . . . . . . . . Total Orders . | . . . . . . . . . . . . . . . . . . . Ally Attacks 241 | . . . . . 17 . 22 . 23 51 125 3 . . . . . . Total Damage 8011 | . . . . . 192 . 279 . 575 1568 5303 94 . . . . . . Kills 53 | . . . . . 4 . 4 . 6 7 32 . . . . . . . Allies Corrupted 1 | . . . . . . . . . . . 1 . . . . . . . Allies Melted . | . . . . . . . . . . . . . . . . . . . Intel | -11 -10 -10 -10 -9 -8 -8 -7 -6 -6 -6 -5 -4 -4 -4 -4 -3 -3 -2 ------- Run | Yrd Mat Min Exi Min Mat Gar Fac Fac Ext Cet Fac Fac Upp Upp Zhi Pro Res Res Active Infowar (turns) 9180 | 50 301 . . . . . 1284 367 1316 527 1528 166 639 400 243 719 841 799 Optics 8760 | . . . . . . . 1215 367 1316 527 1528 166 639 400 243 719 841 799 Terrain 1241 | . . . . . . . . . . . . . . . . . 841 400 Seismic 351 | 50 301 . . . . . . . . . . . . . . . . . Jamming 6982 | . . . . . . . 1278 . 1253 7 1510 166 639 400 243 251 841 394 Robot Analysis Total 6 | . 2 . . . . . . . . . . . . . 4 . . . Derelict Logs Recovered 2 | . . . . . . . . . . . . . 1 1 . . . . Drone Launches . | . . . . . . . . . . . . . . . . . . . Drone Recoveries . | . . . . . . . . . . . . . . . . . . . Exploration | -11 -10 -10 -10 -9 -8 -8 -7 -6 -6 -6 -5 -4 -4 -4 -4 -3 -3 -2 ------------- Run | Yrd Mat Min Exi Min Mat Gar Fac Fac Ext Cet Fac Fac Upp Upp Zhi Pro Res Res Turns Passed 13722 | 151 1692 242 433 171 1162 961 1363 367 1316 527 1528 166 639 400 243 719 841 801 Spaces Moved 8650 | 75 876 126 206 84 715 528 868 267 783 182 1069 120 510 331 175 476 561 698 Core 424 | 3 . . . 2 . . . . . . . . . . . . . 419 Treads 1367 | 72 876 126 206 82 5 . . . . . . . . . . . . . Legs 6859 | . . . . . 710 528 868 267 783 182 1069 120 510 331 175 476 561 279 Wheels . | . . . . . . . . . . . . . . . . . . . Hover . | . . . . . . . . . . . . . . . . . . . Flight . | . . . . . . . . . . . . . . . . . . . Fastest Speed 50 | 50 160 160 160 160 120 120 113 101 101 117 116 120 120 120 120 120 105 50 Average Speed 123 | 155 163 160 160 172 120 121 121 108 114 135 121 120 120 120 120 120 112 91 Slowest Speed 750 | 160 240 160 160 750 160 190 125 113 192 192 125 120 120 120 120 120 176 500 Overloaded Moves . | . . . . . . . . . . . . . . . . . . . Propulsion Burnouts . | . . . . . . . . . . . . . . . . . . . Robots Hopped . | . . . . . . . . . . . . . . . . . . . Potential Cave-ins . | . . . . . . . . . . . . . . . . . . . Cave-ins Triggered . | . . . . . . . . . . . . . . . . . . . Teleports 1 | . . . . . . . . . . . . . . . . . . 1 Exploration Rate (%) 43 | 4 93 20 60 14 74 51 25 9 79 73 41 7 69 52 63 57 19 25 Regions Visited 18 Branch Regions 9 Pre-discovered Areas 5 | . . . . . 2 . . . . . . . . . 3 . . . Known Exits Taken 3 | . . . 1 . 1 . . . . . . 1 . . . . . . Unknown Exits Taken 14 | 1 1 1 . 1 . . 1 1 1 1 1 . 1 1 1 1 1 . Scrap Searched 7 | . . . . 1 . . . . . . . . 2 3 . 1 . . Spaces Dug 57 | . 3 . . . 1 6 7 7 . . 8 5 . . . 5 9 6 Terrain Destroyed 218 | . 8 . . . 11 38 32 10 8 3 44 7 9 . . 30 11 7 Melee 42 | . . . . . 1 . 7 5 . . 8 2 . . . 5 8 6 Projectile 47 | . . . . . . . . 5 8 3 10 5 . . . 12 3 1 AOE 129 | . 8 . . . 10 38 25 . . . 26 . 9 . . 13 . . Terrain Rammed . | . . . . . . . . . . . . . . . . . . . Walls Destroyed . | . . . . . . . . . . . . . . . . . . . Machines Disabled . | . . . . . . . . . . . . . . . . . . . Actions | -11 -10 -10 -10 -9 -8 -8 -7 -6 -6 -6 -5 -4 -4 -4 -4 -3 -3 -2 --------- Run | Yrd Mat Min Exi Min Mat Gar Fac Fac Ext Cet Fac Fac Upp Upp Zhi Pro Res Res Total 10813 | 95 1007 155 310 103 896 737 1084 319 1146 448 1228 133 535 332 190 551 726 818 Wait 1078 | 6 22 6 103 12 48 35 116 10 217 230 82 . 20 . 1 7 113 50 Move 8632 | 74 875 125 205 83 714 527 867 266 782 181 1068 119 509 330 174 475 560 698 Hop . | . . . . . . . . . . . . . . . . . . . Pick Up 91 | 2 17 4 1 . 18 3 6 4 4 7 8 2 2 . 1 3 5 4 Fast Attach 39 | 7 1 . . . 3 2 2 4 2 . . 2 . . 1 3 6 6 Attach 34 | . 3 1 . . 3 3 2 2 5 . 2 3 1 . . 1 3 5 Detach 6 | . . . . . 1 . . 2 1 . . . . . . 1 . 1 Swap 190 | . 12 5 . 3 25 23 33 4 8 12 19 1 2 1 6 18 8 10 Drop 106 | . 4 6 1 . 23 4 12 9 2 10 12 1 . . 1 4 6 11 Fire 319 | 6 68 8 . 3 57 43 29 10 13 8 24 3 1 . 6 22 13 5 Melee 118 | . . . . . 4 11 14 8 17 . 10 2 . 1 . 17 12 22 Ram 6 | . . . . . . . . . . . . . . . . . . 6 Kick 6 | . . . . . . . 3 . . . 3 . . . . . . . Crush 7 | . 5 . . 2 . . . . . . . . . . . . . . Escape Stasis 15 | . . . . . . 15 . . . . . . . . . . . . Rewire 163 | . . . . . . 71 . . 92 . . . . . . . . . Trap 3 | . . . . . . . . . 3 . . . . . . . . . Miscellaneous . | . . . . . . . . . . . . . . . . . . . Route ------- -11/Scrapyard -10/Materials (discovered 5 exits: *Mat x3 / *Min / *Sub) -10/Mines (discovered 4 exits: Mat x2 / *Exi / Sub) -10/Exiles (discovered 2 exits: *Min x2) -9/Mines -8/Materials (discovered 4 exits: *Fac x3 / Gar) -8/Garrison (discovered 3 exits: *Fac x3) -7/Factory (discovered 2 exits: *Fac x2) -6/Factory -6/Extension (discovered 2 exits: *Fac / *Cet) -6/Cetus (discovered 2 exits: *Fac / [*Arc]) -5/Factory -4/Factory (discovered 3 exits: *Upp x2 / Arm) -4/Upper Caves -4/Upper Caves -4/Zhirov -3/Proximity Caves -3/Research (discovered 2 exits: *Res / Qua) -2/Research History --------- Turn | Location | Event 4 | -11/Scrapyard | Discovered new exit (range 15) 152 | -11/Scrapyard | Entered Materials 305 | -10/Materials | Build established: Mutant 775 | -10/Materials | Discovered new exit (range 9) 963 | -10/Materials | Discovered new exit (range 14) 1063 | -10/Materials | Discovered new exit (range 14) 1095 | -10/Materials | Discovered new exit (range 7) 1164 | -10/Materials | Discovered new exit (range 16) 1326 | -10/Materials | Learned 4 Recycling zone layouts 1353 | -10/Materials | Lost 3 parts (1n1u1w) 1406 | -10/Materials | Learned location of 2 exits from Materials 1467 | -10/Materials | Learned location of 1 exit from Storage 1567 | -10/Materials | Loaded intel: 8 trap records 1631 | -10/Materials | Identified exit to Materials 1844 | -10/Materials | Entered Mines 1845 | -10/Mines | Identified exit to Subcaves 1854 | -10/Mines | Core integrity fell below 50% 1923 | -10/Mines | Met a Derelict who couldn't figure out how to use a Trap Extractor 2078 | -10/Mines | Deemed a non-threat by the Exiles lab entrance 2080 | -10/Mines | Discovered new exit (range 5) 2086 | -10/Mines | Entered Exiles 2087 | -10/Exiles | Identified exit to Mines 2125 | -10/Exiles | Met 8R-AWN 2152 | -10/Exiles | Met EX-HEX 2197 | -10/Exiles | Met EX-BIN 2216 | -10/Exiles | Aligned with FarCom system 2218 | -10/Exiles | Given EX-Vault access code 2254 | -10/Exiles | Opened EX-Vault 2266 | -10/Exiles | Found Latent Energy Streamer 2298 | -10/Exiles | Warned to stay clear of 0b10 Research branches 2321 | -10/Exiles | Exiles lab attacked by MAIN.C 2519 | -10/Exiles | Left Exiles lab with Latent Energy Streamer 2519 | -10/Exiles | Entered Mines 2596 | -9/Mines | Discovered new exit (range 9) 2643 | -9/Mines | Assisted by bots powering up and referring to "LRC-V3" 2690 | -9/Mines | Entered Materials 2690 | -8/Materials | Accompanied by 3 allies 2690 | -8/Materials | Evolved 4 slots: Propulsion x1, Utility x2, Weapon x1 2691 | -8/Materials | Identified exit to Factory 2726 | -8/Materials | Central database locked down 2991 | -8/Materials | Build established: Skirmisher 3286 | -8/Materials | Learned location of 1 exit from Lower Caves 3360 | -8/Materials | Learned Storage garrison access intel 3426 | -8/Materials | Learned location of 1 exit from Storage 3572 | -8/Materials | Learned location of Lower Caves (-7) 3602 | -8/Materials | Learned Factory terminal intel 3689 | -8/Materials | Learned location of Lower Caves (-6) 3749 | -8/Materials | Learned Factory trap positions 3819 | -8/Materials | Learned 8 Factory zone layouts 3851 | -8/Materials | Identified exit to Garrison 3852 | -8/Materials | Entered Garrison 3878 | -8/Garrison | Triggered checkpoint 3951 | -8/Garrison | Garrison Relay disabled 4071 | -8/Garrison | Triggered checkpoint 4078 | -8/Garrison | Triggered checkpoint 4240 | -8/Garrison | Triggered checkpoint 4259 | -8/Garrison | Garrison Relay disabled 4813 | -8/Garrison | Entered Factory 4813 | -7/Factory | Accompanied by 2 allies 4813 | -7/Factory | Evolved 2 slots: Propulsion x1, Utility x1 4815 | -7/Factory | Loaded intel: 108 trap records 4816 | -7/Factory | Loaded intel: 25 terminal locations 5126 | -7/Factory | Discovered new exit (range 21) 5388 | -7/Factory | Central database locked down 6093 | -7/Factory | Discovered new exit (range 9) 6176 | -7/Factory | Entered another Factory area 6176 | -6/Factory | Accompanied by 2 allies 6176 | -6/Factory | Evolved 2 slots: Power x1, Utility x1 6451 | -6/Factory | Build established: Mutant 6491 | -6/Factory | Discovered new exit (range 11) 6543 | -6/Factory | Entered Extension 6543 | -6/Extension | Accompanied by 1 ally 6825 | -6/Extension | Spotted B-75 Beast 6895 | -6/Extension | Spotted B-75 Beast 7173 | -6/Extension | Rescued a captive Derelict 7196 | -6/Extension | Rescued a captive Derelict 7197 | -6/Extension | Rescued a captive Derelict 7216 | -6/Extension | Rescued A7 7292 | -6/Extension | Rescued a captive Derelict 7293 | -6/Extension | Rescued a captive Derelict 7499 | -6/Extension | Rescued a captive Derelict 7707 | -6/Extension | Discovered new exit (range 10) 7708 | -6/Extension | Discovered new exit (range 6) 7823 | -6/Extension | Build established: Commander-Mutant 7859 | -6/Extension | Entered Cetus 7859 | -6/Cetus | Accompanied by 17 allies (A7) 7864 | -6/Cetus | Acquired a Cetus Manufacturing Module code from A7 7884 | -6/Cetus | Spotted Cetus Guard 7884 | -6/Cetus | Spotted Cetus Guard 7884 | -6/Cetus | Spotted Cetus Guard 7884 | -6/Cetus | Spotted Cetus Guard 7900 | -6/Cetus | Destroyed Cetus Guard 7900 | -6/Cetus | Allies destroyed Cetus Guard 7908 | -6/Cetus | Destroyed Cetus Guard 7917 | -6/Cetus | Allies destroyed Cetus Guard 7936 | -6/Cetus | Lost 6 allies 8037 | -6/Cetus | Started Cetus Manufacturing Module 8046 | -6/Cetus | Escorted A7 to Cetus Mainframe 8062 | -6/Cetus | Manufactured an Enhanced Grunt 8087 | -6/Cetus | Manufactured an Enhanced Grunt 8112 | -6/Cetus | Manufactured an Enhanced Grunt 8137 | -6/Cetus | Manufactured an Enhanced Grunt 8162 | -6/Cetus | Manufactured an Enhanced Grunt 8178 | -6/Cetus | Build established: Commander-Gunner 8212 | -6/Cetus | Discovered new exit (range 21) 8292 | -6/Cetus | Spotted Cetus Guard 8292 | -6/Cetus | Spotted Cetus Guard 8293 | -6/Cetus | Spotted Cetus Guard 8293 | -6/Cetus | Spotted Cetus Guard 8295 | -6/Cetus | Allies destroyed Cetus Guard 8299 | -6/Cetus | Allies destroyed Cetus Guard 8302 | -6/Cetus | Discovered new exit (range 22) 8304 | -6/Cetus | Destroyed Cetus Guard 8312 | -6/Cetus | Allies destroyed Cetus Guard 8327 | -6/Cetus | Met Revision 17 8386 | -6/Cetus | Entered Factory 8386 | -5/Factory | Accompanied by 15 allies (A7) 8386 | -5/Factory | Evolved 2 slots: Propulsion x1, Utility x1 8391 | -5/Factory | Received a hacking code to weaken MAIN.C 9286 | -5/Factory | First assault squad dispatched 9511 | -5/Factory | Spotted B-75 Beast 9759 | -5/Factory | Build established: Commander-Mutant 9819 | -5/Factory | Discovered new exit (range 12) 9869 | -5/Factory | Lost 3 allies 9914 | -5/Factory | Entered another Factory area 9914 | -4/Factory | Accompanied by 1 ally 9914 | -4/Factory | Evolved 2 slots: Propulsion x1, Utility x1 9926 | -4/Factory | Identified exit to Upper Caves 9926 | -4/Factory | Identified exit to Armory 9982 | -4/Factory | Found Quantum Capacitor 10080 | -4/Factory | Entered Upper Caves 10145 | -4/Upper Caves | Learned location of 1 exit from Research 10206 | -4/Upper Caves | Build established: Scavenger-Mutant 10408 | -4/Upper Caves | Attracted the attention of an 0b10 checkpoint 10551 | -4/Upper Caves | Encountered a Warlord checkpoint 10709 | -4/Upper Caves | Discovered new exit (range 10) 10719 | -4/Upper Caves | Entered another Upper Caves area 11111 | -4/Upper Caves | Discovered new exit (range 8) 11119 | -4/Upper Caves | Entered Zhirov 11119 | -4/Zhirov | Discovered new exit (range 3) 11141 | -4/Zhirov | Met Zhirov 11164 | -4/Zhirov | Learned location of Quarantine (-3) 11164 | -4/Zhirov | Learned location of Testing (-2) 11164 | -4/Zhirov | Learned location of Command (-1) 11185 | -4/Zhirov | Zhirov requested help retrieving the SGEMP Prototype 11203 | -4/Zhirov | Found Alien Artifact 11203 | -4/Zhirov | Identified Integrated Reactor 11203 | -4/Zhirov | Installed Integrated Reactor, increased core energy generation (+10) 11220 | -4/Zhirov | Found Alien Artifact 11362 | -4/Zhirov | Entered Proximity Caves 11363 | -3/Proximity Caves | Unaware initiated a cargo recovery operation 11403 | -3/Proximity Caves | Encountered a Derelict guarding a broken Freighter 11406 | -3/Proximity Caves | Lost 3 parts (2n1u) 11456 | -3/Proximity Caves | Found Prototype Processor 11456 | -3/Proximity Caves | Identified Exp. Signal Interpreter 11460 | -3/Proximity Caves | Found Prototype Device 11460 | -3/Proximity Caves | Identified Exp. EM Shield 11473 | -3/Proximity Caves | Found Prototype Launcher 11473 | -3/Proximity Caves | Identified Enh. Gamma Bomb Array 11476 | -3/Proximity Caves | Found Enh. Gamma Bomb Array 11746 | -3/Proximity Caves | Found Enh. Gamma Bomb Array 11997 | -3/Proximity Caves | Attracted the attention of an 0b10 checkpoint 12013 | -3/Proximity Caves | Spotted B-86 Titan 12058 | -3/Proximity Caves | Discovered new exit (range 20) 12081 | -3/Proximity Caves | Entered Research 12081 | -3/Research | Evolved 2 slots: Utility x1, Weapon x1 12082 | -3/Research | Identified exit to Quarantine 12281 | -3/Research | Revision forces began assault on 0b10 12344 | -3/Research | Met up with Revision 17++ 12433 | -3/Research | Build established: Scavenger-Assassin 12454 | -3/Research | Central database locked down 12718 | -3/Research | Discovered new exit (range 10) 12781 | -3/Research | Research terminal network offline 12922 | -3/Research | Entered another Research area 12922 | -2/Research | Evolved 2 slots: Utility x2 13306 | -2/Research | System corruption reached 10% 13328 | -2/Research | Identified Transdimensional Reconstructor 13328 | -2/Research | Warped through subspace 13358 | -2/Research | Lost 18 parts (3p6n6u3w) 13370 | -2/Research | Found Prototype Processor 13370 | -2/Research | Identified Exp. Target Analyzer 13447 | -2/Research | Found Prototype Launcher 13447 | -2/Research | Identified Ragnarok Missile Launcher 13622 | -2/Research | Build established: Mutant 13638 | -2/Research | Spotted B-90 Cyclops 13659 | -2/Research | Spotted B-90 Cyclops 13673 | -2/Research | Core integrity fell below 50% 13719 | -2/Research | Core integrity fell below 20% 13723 | -2/Research | Destroyed by S-43 Plague with Heavy Machine Gun Last Messages --------------- 13701_ Penetrated by Slug. 13701_ Critical hit (Burn: +37). 13710_ S-43 Plague suffers critical hit (Destroy). 13711_ Slug penetrates Meson Extractor. 13711_ Meson Extractor disabled. 13713_ Slug penetrates Meson Extractor. 13718_ Slammed into S-43 Plague. 13718_ Adv. Corruption Screen intercepted 1% system corruption. 13719_ Adv. Targeting Computer destroyed. 13719_ Slammed into S-43 Plague. 13720_ System corrupted: Component data lost. 13720_ Slammed into S-43 Plague. 13720_ Adv. Corruption Screen broken. 13720_ Destabilizing: Short circuit. 13721_ Adv. KE Penetrator destroyed. 13721_ Slammed into S-43 Plague. 13721_ Enh. Optical Array broken. 13721_ Destabilizing: Short circuit. 13722_ Slammed into S-43 Plague. 13723_ Destabilizing: Core damaged (-58). Map ----- +----------------------------------------------------+ | | | | | | | ?????????????????????????????????????????????????? | | ?????????????????????????????????????????????????? | | ?????????????????????????????????????????????????? | | ?????????????????????????????????????????????????? | | ?????????????????????????????????????????????????? | | ?????????????????????????????????????????????????? | | ?????????????????????????????????????????????????? | | ?????????????????????????????????????????????????? | | ?????????????????????????????????????????????????? | | ?????????????????????????????????????????????????? | | ?????????????????????????????????????????????????? | | ?????????????????????????????????????????????????? | | ?????????????????????????????????????????????????? | | ?????????????????????????????????????????????????? | | ?????????????????????????????????????????????????? | | ?###########?????????????????????????????????????? | | ?# #?????????????????????????????????????? | | ?# #????###########??????????????????????? | | ?# ###### """ #??????????????????????? | | ?# # # "" #????" ???????????????? | | ?# # # """s s#??""" ???????????????? | | ?# # #g s p# """ +??????????????? | | ?# + gg @s #??????????????? | | ?# # g# ] # #??????????????? | | ?########"## g # #?? ! #??????????????? | | ??# # # #???? #??????????????? | | ??# # ###########?????? #??????????????? | | ??# "" # #????????????????????????????????? | | ??# "" # Y##???????????????????????????????? | | ??# T" + "#############???????????????????? | | ??# "" # # ] #???????????????????? | | ??# "" # # #???????????????????? | | ??# # g# """ """ #???????????????????? | | ??# # # """ """ #???????????????????? | | ??########## # """ #???????????????????? | | ???????????# # #???????????????????? | | ???????????# g# * #???????????????????? | | ???????????# # #???????????????????? | | ???????????# # #???????????????????? | | ????? ?????# # #???????????????????? | | ???? ??# # ""T"" #???????????????????? | | ?????? ?# # """"" #???????????????????? | | ???????" # #####/############???????????????? | | ????????? / #?# + #???????????????? | | ???????????# #?# # #???????????????? | | ???????????# ### # """ #???????????????? | | ???????????# + """" #???????????????? | +----------------------------------------------------+ Best States ------------- Heat Dissipation 78 Energy Generation 53 Energy Capacity 530 Matter Stores 300 Matter Capacity 300 Sight Range 22 Terrain Scan Range 18 Terrain Scan Density 10 Jamming Range 14 Power Amplification 20 Additional Mass Support 16 Corruption Block 20 Armor Coverage 450 Resistance: KI 20 Resistance: EM 75 Power Shielding 90 Evasion (%) 82 Targeting Accuracy 8 Core Analysis 6 Armor Integrity Analysis 30 Recoil Reduction 2 Offensive Hacking 10 Defensive Hacking 14 Trap Extractor Capacity 6 Item Schematics ----------------- Assault Drone Bay | -4/Zhirov | Free Exp. Heat Sink | -4/Zhirov | Free Exp. Optical Array | -4/Zhirov | Free Imp. Arc Thrower | -4/Zhirov | Free Robot Schematics ------------------ None Fabricated ------------ Nothing Repaired ---------- Nothing Studied --------- Imp. Carbon-fiber Leg | -7/Factory | Hacked Hvy. Phase Cannon | -5/Factory | Hacked Flexi-carbon Leg | -3/Research | Hacked Thunder Leg | -3/Research | Hacked Gamma Rifle | -3/Research | Hacked Alien Tech Used ----------------- Integrated Reactor Transdimensional Reconstructor Achievements -------------- None Challenges ------------ None Game ------ Seed WeaponCoordinationCleaver Manual? 0 Play Time 02:39:16 Cumulative 215.1 hours Start 2025.11.01 @ 15:23:38 End 2025.11.01 @ 20:42:52 Sessions 1 Manual Loads 0 Difficulty Rogue Special Mode None Game No. 175 Rogue 175 Adventurer 0 Explorer 0 Win Type - Total 5 Types 3/0/0/2/0/0/0/0/0/0 Lore% 75 Gallery% 68 Achievement% 48 Wizard Run 0 Options --------- Layout 0 ASCII 0 Keyboard 1 Movement Numpad Keybinds 0 Fullscreen 1 Font 24/Terminus Map View 76x50 Zoom Use 0% Tactical HUD 1 Map Filters NONE Filters NONE Steam 1 RUN: 1bdfc71e-8755-4fc1-ba63-ac21f6da66d7